Cogmind - Beta 11 X5 @@@ ROGUE MODE // 2021.07.11 @ 00:15:09 Player: Exp. Geonium Core Result: Self-destructed Performance ------------- Evolutions (1) 500 Regions Visited (3) 600 Robots Destroyed (2) 10 Value Destroyed (52) 52 Prototype IDs (3) 60 Alien Tech Used (0) 0 Bonus (0) 0 TOTAL SCORE: 1222 Bonus ------- None Cogmind --------- Core Integrity 286/400 Matter 173/300 Energy 12/100 System Corruption 0% Temperature Cool (0) Movement Flying (32) Location -9/Storage Parts ------- > --- POWER (1) -------- (None) > --- PROPULSION (4) --- VTOL Module Improved Flight Unit Improved VTOL Module Improved VTOL Module > --- UTILITY (2) ------ Hacking Suite Hacking Suite > --- WEAPON (2) ------- Heavy Mace > --- INVENTORY (5) ---- Flight Unit Improved VTOL Module Heavy Mace Peak State ------------ > --- POWER ------------ Improved Ion Engine > --- PROPULSION ------- VTOL Module Improved Flight Unit Improved VTOL Module Improved VTOL Module > --- UTILITY ---------- Hacking Suite Hacking Suite > --- WEAPON ----------- Heavy Mace > --- INVENTORY -------- Flight Unit Improved VTOL Module Heavy Mace [Rating: 24] Favorites ----------- Power Improved Ion Engine Engine Improved Ion Engine Propulsion Improved VTOL Module Treads Light Treads Leg Aluminum Leg Hover Unit Hover Unit Flight Unit Improved VTOL Module Utility Hacking Suite Storage Small Storage Unit Processor Advanced Targeting Computer Hackware Hacking Suite Weapon Heavy Mace Energy Gun Small Laser Energy Cannon Advanced Beam Cannon Ballistic Gun Assault Rifle Impact Weapon Heavy Mace Build | -11 -10 -9 -9 ------- Run | Scr Mat Mat Sto Slots Evolved 2 | . . 2 . Power . | . . . . Propulsion 2 | . . 2 . Utility . | . . . . Weapon . | . . . . Parts Attached 16 | . . 14 2 Power 1 | . . 1 . Engine 1 | . . 1 . Core . | . . . . Reactor . | . . . . Propulsion 9 | . . 8 1 Treads 1 | . . 1 . Leg . | . . . . Wheel . | . . . . Hover 1 | . . 1 . Flight 7 | . . 6 1 Utility 4 | . . 3 1 Device . | . . . . Storage . | . . . . Processor 2 | . . 2 . Hackware 2 | . . 1 1 Protection . | . . . . Artifact . | . . . . Weapon 2 | . . 2 . Energy Gun . | . . . . Energy Cannon 1 | . . 1 . Ballistic Gun . | . . . . Ballistic Cannon . | . . . . Launcher . | . . . . Special Weapon . | . . . . Impact Weapon 1 | . . 1 . Slashing Weapon . | . . . . Piercing Weapon . | . . . . Special Melee Weapon . | . . . . Unidentified Prototypes 3 | . . 2 1 Parts Lost 3 | . . 1 2 Power 1 | . . . 1 Propulsion 2 | . . 1 1 Utility . | . . . . Weapon . | . . . . Highest Loss Streak 2 | . . 1 2 Average Slot Usage (%) 69 | . 57 62 83 Engine 5 | . . 6 7 Leg 6 | . 28 3 . Flight 28 | . . 29 42 Processor 4 | . . 8 1 Hackware 8 | . . 2 20 Energy Gun 3 | . 14 1 . Ballistic Gun 3 | . 14 1 . Impact Weapon 6 | . . 5 11 Naked Turns 4 | . . 4 . Heaviest Build 11 | 11 3 10 10 Greatest Support 20 | 20 3 18 19 Greatest Overweight (x) . | . . . . Average Overweight (x) . | . . . . Largest Inventory Capacity 8 | . 8 5 5 Average Capacity 5 | . 5 5 5 Most Carried 5 | . 5 5 4 Average Carried 3 | . 2 4 3 Final Capacity 8 | 8 5 5 5 Final Carried 6 | 6 3 4 3 Class Distribution -------------------- 52% | Sprinter 31% | Hacker-Sprinter 16% | Mutant Dominant Class ---------------- Mutant | -10/Materials Mutant | -9/Materials Hacker-Sprinter | -9/Storage Resources | -11 -10 -9 -9 ----------- Run | Scr Mat Mat Sto Matter Collected 231 | 192 13 26 . Remotely . | . . . . Salvage Created 28 | . 13 15 . Parts 3 | . 1 2 . Haulers Intercepted . | . . . . Recyclers Shooed . | . . . . Parts Field Recycled . | . . . . Retrieved Matter . | . . . . Parts Self-Destructed . | . . . . Prevented . | . . . . Kills | -11 -10 -9 -9 ------- Run | Scr Mat Mat Sto Combat Hostiles Destroyed . | . . . . Classes Destroyed 1 | . 1 . . Operator 2 | . 1 1 . Best Kill Streak 2 | . 1 2 . Combat Bots Only . | . . . . Max Kills in Single Turn 1 | . 1 1 . Gunslinging . | . . . . Exploded . | . . . . Melee . | . . . . Uniques/NPCs Destroyed . | . . . . Combat | -11 -10 -9 -9 -------- Run | Scr Mat Mat Sto Damage Taken 362 | . 53 208 101 Core 134 | . 20 91 23 Absorbed by Shields . | . . . . Core Remaining (%) 96 | 100 92 . . Volleys Fired 6 | . 4 2 . Largest 2 | . 2 2 . Hottest 60 | . 60 60 . Shots Fired 9 | . 5 4 . Gun 9 | . 5 4 . Cannon . | . . . . Launcher . | . . . . Special . | . . . . Kinetic 6 | . 4 2 . Thermal 3 | . 1 2 . Explosive . | . . . . Electromagnetic . | . . . . Robot Hit Streak 4 | . 3 4 . Robot Miss Streak 1 | . 1 1 . Penetration Max . | . . . . Secondary Targets 1 | . 1 . . Max Gunslinging Chain 1 | . 1 . . Shots Hit Robots 5 | . 3 2 . Core Hits 3 | . 1 2 . Critical Kills . | . . . . Critical Parts Destroyed . | . . . . Critical Strikes . | . . . . Melee Attacks 3 | . . 1 2 Impact 3 | . . 1 2 Slashing . | . . . . Piercing . | . . . . Sneak Attacks . | . . . . Combat Hostiles . | . . . . Follow-up Attacks . | . . . . Damage Inflicted 82 | . 36 46 . Guns 59 | . 35 24 . Cannons . | . . . . Explosions 22 | . . 22 . Melee . | . . . . Ramming 1 | . 1 . . Kinetic 49 | . 25 24 . Thermal 10 | . 10 . . Explosive . | . . . . Electromagnetic 22 | . . 22 . Impact . | . . . . Slashing . | . . . . Piercing . | . . . . Highest Corruption . | . . . . Average Corruption . | . . . . Corruption Purged . | . . . . Overload Shots . | . . . . Overflow Damage . | . . . . Projectiles . | . . . . Explosions . | . . . . Melee . | . . . . Knockbacks . | . . . . Impact . | . . . . Kinetic . | . . . . Secondary . | . . . . Self-Inflicted Damage 25 | . . 25 . Shots 1 | . . 1 . Rammed . | . . . . Targets Rammed 1 | . 1 . . Kicked 1 | . 1 . . Crushed . | . . . . Highest Temperature 176 | . 1 176 1 Average Temperature 45 | . 1 50 1 Received Heat Transfer 99 | . 30 54 15 Siege Activations . | . . . . Robots Corrupted . | . . . . Combat Hostiles . | . . . . Parts Fried . | . . . . Impact Corruptions . | . . . . Robots Melted . | . . . . Combat Hostiles . | . . . . Parts Melted . | . . . . Heat Transferred 25 | . 25 . . Parts Sabotaged . | . . . . Parts Stolen . | . . . . Parts Stripped . | . . . . Power Chain Reactions . | . . . . Missiles Intercepted . | . . . . Alert | -11 -10 -9 -9 ------- Run | Scr Mat Mat Sto Peak Influence 380 | . 20 118 380 Initial 55 | . . 8 55 Average 87 | . 12 58 164 Maximum Alert Level 1 | . . . 1 Low Security (%) 87 | . 100 100 65 Level 1 12 | . . . 34 Level 2 . | . . . . Level 3 . | . . . . Level 4 . | . . . . Level 5 . | . . . . High Security . | . . . . Max Security . | . . . . Squads Dispatched 6 | . 1 2 3 Investigation 3 | . . 1 2 Extermination . | . . . . Reinforcement 3 | . 1 1 1 Assault . | . . . . Garrison . | . . . . Intercept . | . . . . Construction Impeded . | . . . . Haulers Reinforced . | . . . . Cargo Convoy Interrupts . | . . . . Stealth | -11 -10 -9 -9 --------- Run | Scr Mat Mat Sto Distress Signals 2 | . . 1 1 Communications Jammed . | . . . . Distress Signals . | . . . . Times Spotted 42 | . 2 18 22 Peak Tracking Total 14 | . 1 13 14 Tactical Retreats 4 | . . 1 3 Traps | -11 -10 -9 -9 ------- Run | Scr Mat Mat Sto Traps Triggered . | . . . . Indirectly . | . . . . Trap Hack Attempts . | . . . . Triggered . | . . . . Disarmed . | . . . . Reprogrammed . | . . . . Reused . | . . . . Traps Extracted . | . . . . Installed . | . . . . Triggered . | . . . . Machines | -11 -10 -9 -9 ---------- Run | Scr Mat Mat Sto Machines Disabled 2 | . . 1 1 Max in Single Turn 1 | . . 1 1 Machines Sabotaged . | . . . . Garrisons Compromised . | . . . . Overloaded Fab Kills . | . . . . Fab Network Shutdowns . | . . . . Hacking | -11 -10 -9 -9 --------- Run | Scr Mat Mat Sto Machines Accessed 6 | . 1 2 3 Terminals 6 | . 1 2 3 Fabricators . | . . . . Repair Stations . | . . . . Recycling Units . | . . . . Scanalyzers . | . . . . Garrison Access . | . . . . Total Hacks 19 | . 4 8 7 Successful 5 | . 2 3 . Failed 14 | . 2 5 7 Catastrophic 3 | . . 2 1 Database Lockouts . | . . . . Manual 17 | . 4 6 7 Terminals 19 | . 4 8 7 Fabricators . | . . . . Repair Stations . | . . . . Recycling Units . | . . . . Scanalyzers . | . . . . Garrison Access . | . . . . Terminal Hacks 4 | . 1 3 . Level Access Points 1 | . 1 . . Emergency Access Points 1 | . . 1 . Zone Layout 2 | . . 2 . Fabricator Hacks . | . . . . Repair Station Hacks . | . . . . Recycling Unit Hacks . | . . . . Scanalyzer . | . . . . Garrison Access Hacks . | . . . . Unauthorized Hacks 1 | . 1 . . Terminals 1 | . 1 . . Operators 1 | . 1 . . Fabricators . | . . . . Repair Stations . | . . . . Recycling Units . | . . . . Scanalyzers . | . . . . Garrison Access . | . . . . Data Cores Recovered . | . . . . Used . | . . . . Hacking Detections 5 | . 1 2 2 Full Trace Events 3 | . . 1 2 Feedback Events . | . . . . Feedback Blocked . | . . . . Robot Schematics Acquired . | . . . . Robots Built . | . . . . Matter . | . . . . Time . | . . . . Total Robot Build Rating . | . . . . Part Schematics Acquired . | . . . . Parts Built . | . . . . Matter . | . . . . Time . | . . . . Total Part Build Rating . | . . . . Parts Repaired . | . . . . Time . | . . . . Parts Recycled . | . . . . Recycled Matter . | . . . . Retrieved Matter . | . . . . Retrieved Components . | . . . . Parts Scanalyzed . | . . . . Part Schematics Acquired . | . . . . Parts Damaged . | . . . . Bothacking | -11 -10 -9 -9 ------------ Run | Scr Mat Mat Sto Used RIF Installer . | . . . . Robots Hacked . | . . . . Non-combat . | . . . . Combat . | . . . . Robot Hacks Applied . | . . . . Relay Couplers Released . | . . . . Robots Rewired . | . . . . Allies Hacked . | . . . . Hacks Repelled . | . . . . Allies | -11 -10 -9 -9 -------- Run | Scr Mat Mat Sto Total Allies . | . . . . Largest Group . | . . . . Highest-Rated Group . | . . . . Highest-Rated Ally . | . . . . Total Orders . | . . . . Ally Attacks . | . . . . Total Damage . | . . . . Kills . | . . . . Allies Corrupted . | . . . . Allies Melted . | . . . . Intel | -11 -10 -9 -9 ------- Run | Scr Mat Mat Sto Robot Analysis Total . | . . . . Derelict Logs Recovered . | . . . . Drone Launches . | . . . . Drone Recoveries . | . . . . Exploration | -11 -10 -9 -9 ------------- Run | Scr Mat Mat Sto Turns Passed 275 | . 53 123 99 Spaces Moved 608 | 1 76 226 305 Core 106 | . 76 30 . Treads . | . . . . Legs 1 | 1 . . . Wheels . | . . . . Hover . | . . . . Flight 501 | . . 196 305 Fastest Speed 27 | 120 50 27 27 Average Speed 32 | 120 50 31 27 Slowest Speed 120 | 120 50 50 32 Overloaded Moves . | . . . . Propulsion Burnouts . | . . . . Robots Hopped 14 | . . 8 6 Cave-ins Triggered . | . . . . Exploration Rate (%) 31 | 2 18 34 71 Regions Visited 3 Branch Regions 1 Pre-discovered Areas . | . . . . Known Exits Taken 1 | . 1 . . Unknown Exits Taken 2 | 1 . 1 . Scrap Searched . | . . . . Spaces Dug 1 | . . 1 . Terrain Destroyed 1 | . . 1 . Melee 1 | . . 1 . Projectile . | . . . . AOE . | . . . . Terrain Rammed . | . . . . Walls Destroyed . | . . . . Machines Disabled . | . . . . Actions | -11 -10 -9 -9 --------- Run | Scr Mat Mat Sto Total 660 | . 88 262 310 Wait 17 | . 1 11 5 Move 581 | . 75 213 293 Hop 10 | . . 4 6 Pick Up 10 | . 1 8 1 Fast Attach 7 | . . 7 . Attach 7 | . . 5 2 Detach . | . . . . Swap 2 | . . 2 . Drop 16 | . 6 9 1 Fire 6 | . 4 2 . Melee 3 | . . 1 2 Ram . | . . . . Kick 1 | . 1 . . Crush . | . . . . Escape Stasis . | . . . . Rewire . | . . . . Trap . | . . . . Miscellaneous . | . . . . Route ------- -11/Scrapyard -10/Materials (discovered 3 exits: *Mat x3) -9/Materials (discovered 2 exits: [*Min] / *Sto) -9/Storage History --------- Turn | Location | Event 1 | -11/Scrapyard | Discovered new exit (range 0) 1 | -11/Scrapyard | Entered Materials 12 | -10/Materials | Identified exit to Materials 54 | -10/Materials | Entered another Materials area 54 | -9/Materials | Evolved 2 slots: Propulsion x2 159 | -9/Materials | Discovered new exit (range 13) 173 | -9/Materials | Discovered new exit (range 15) 177 | -9/Materials | Entered Storage 276 | -9/Storage | Self-destructed Last Messages --------------- 00199_ Connecting with Terminal... 00199_ ALERT: Suspicious activity at Terminal S012. Dispatching Investigation squad. 00208_ Storage Shell breached. 00211_ Acquired Prototype Flight Unit. 00229_ Flight Unit destroyed. 00230_ C-30 ARC bursts open, deploying its payload. 00230_ S-10 Pest unfolds itself. 00230_ K-01 Serf collects debris. 00232_ Identified Imp. Flight Unit. 00235_ O-16 Technician: "IFF HANDSHAKE FAILED. SECURING TERMINAL." 00240_ ALERT: Hostiles spotted, dispatching reinforcements to Terminal S009. 00245_ S-10 Pest destroyed. 00246_ Imp. Ion Engine destroyed. 00257_ Connecting with Terminal... 00257_ ALERT: Suspicious activity at Terminal S004. Dispatching Investigation squad. 00260_ W-16 Scout sends out distress signal. 00260_ O-16 Technician: "IFF HANDSHAKE FAILED. SECURING TERMINAL." Map ----- +----------------------------------------------------+ | #???????????????# # # #???? | | #???????????????# #?##+### ##??? | | #???????????????# #### ## #??? | | #???????????????# #??? | | #???????????????# ## #??? | | #???????????????# ######??? | | #???????????????# #???????? | | ??????? #### #???????? | | ?????? ???# #???????? | | ???? ? ???# #???????? | | ???? ??? ???# #???????? | | ##??????##+#???? ???# ##+#????? | | #??????????????? ???# #????? | | #??????????????? ???# #????? | | #???????????????????# #????? | | #???????????????????# #????? | | #???????????????????# #????? | | #???????????????????# #????? | | #???????????????????+ ####?? | | #???????????????????#### + **# | | #??????????????????????# # **# | | +??????????????????????# # **# | | #??????????????????????# #?#### | | #??????????????????????# #????? | | #??????????????????????# #????? | | #??????????????????????#@#????? | | ########?????????????? ???? | | +?????????????# """ Y?? | | ###??????????????# """ !##? | | #????????????????# """ #?? | | #????????????????# #?? | | #????????????????# ]#?? | | #????????????????########?? | | +?????????????????????????? | | #?????????????????????????? | | #?????????????????????????? | | +?????????????????????????? | | ###+#?????????????????????????? | | ##?????????????????????????????? | | ???????????????????????????????? | | ???????????????????????????????? | | ???????????????????????????????? | | ???????????????????????????????? | | ???????????????????????????????? | | ???????????????????????????????? | | ???????????????????????????????? | | ???????????????????????????????? | | ???????????????????????????????? | | ???????????????????????????????? | | ???????????????????????????????? | +----------------------------------------------------+ Best States ------------- Heat Dissipation 28 Energy Generation 12 Energy Capacity 265 Matter Stores 297 Matter Capacity 300 Sight Range 16 Terrain Scan Density 10 Evasion (%) 64 Targeting Accuracy 16 Recoil Reduction 1 Offensive Hacking 20 Item Schematics ----------------- None Robot Schematics ------------------ None Fabricated ------------ Nothing Alien Tech Used ----------------- None Achievements -------------- None Challenges ------------ None Game ------ Seed GaussPhasingCutter Manual? 0 Play Time 00:11:30 Cumulative 149.7 hours Start 2021.07.11 @ 00:04:53 End 2021.07.11 @ 00:15:09 Sessions 1 Manual Loads 0 Difficulty Rogue Special Mode None Game No. 221 Rogue 221 Adventurer 0 Explorer 0 Win Type - Total 8 Types 6/0/1/1/0/0/0/0/0 Lore% 51 Gallery% 76 Achievement% 62 Wizard Run 0 Options --------- ASCII 0 Keyboard 0 Movement Numpad Keybinds 0 Fullscreen 1 Font 18/Terminus Map View 76x50 Tactical HUD 1 Map Filters NONE Filters NONE Steam 1 RUN: 737f7a65-f803-47ab-b16f-736d3375d26b